fUST/lending_fUST_20240715
["ID","MTS","AMOUNT","RATE_DAILY","PERIOD"]
[332198273,1721028642627,-500.0,0.00024931,2]
[332198274,1721028642636,-500.0,0.00024931,2]
[332198275,1721028642647,-500.0,0.00024931,2]
[332198276,1721028642657,-500.0,0.00024931,2]
[332198277,1721028642667,-500.0,0.00024931,2]
[332198278,1721028642677,-510.51,0.00024931,2]
[332198279,1721028642687,-651.41,0.00024931,2]
[332198281,1721028642697,-500.0,0.00024931,2]
[332198282,1721028642708,-500.0,0.00024931,2]
[332198283,1721028642718,-500.0,0.00024931,2]
[332198284,1721028642728,-500.0,0.00024931,2]
[332198285,1721028642738,-500.0,0.00024931,2]
[332198286,1721028642748,-288.52335405,0.00024931,2]
[332198287,1721028642759,-500.0,0.00024931,2]
[332198288,1721028642770,-500.0,0.00024931,2]
[332198289,1721028642780,-500.0,0.00024931,2]
[332198290,1721028642793,-500.0,0.00024931,2]
[332198291,1721028642804,-500.0,0.00024931,2]
[332198292,1721028642814,-500.0,0.00024931,2]
[332198293,1721028642823,-500.0,0.00024931,2]
[332198294,1721028642835,-789.95,0.00024931,2]
[332198295,1721028642846,-500.0,0.00024931,2]
[332198296,1721028642856,-2415.42,0.00024931,2]
[332198297,1721028642866,-500.0,0.00024931,2]
[332198298,1721028642877,-500.0,0.00024931,2]
[332198299,1721028642890,-500.0,0.00024931,2]
[332198300,1721028642899,-500.0,0.00024931,2]
[332198301,1721028642909,-1142.33,0.00024931,2]
[332198302,1721028642918,-20287.1,0.00024931,2]
[332198303,1721028642927,-500.0,0.00024931,2]
[332198304,1721028642937,-500.0,0.00024931,2]
[332198305,1721028642946,-500.0,0.00024931,2]
[332198306,1721028642956,-500.0,0.00024931,2]
[332198307,1721028642966,-500.0,0.00024931,2]
[332198309,1721028642977,-1609.22,0.00024931,2]
[332198310,1721028642986,-500.0,0.00024931,2]
[332198311,1721028642995,-500.0,0.00024931,2]
[332198312,1721028643005,-503.43372093,0.00024931,2]
[332198313,1721028643014,-3455.44,0.00024931,2]
[332198314,1721028643023,-500.0,0.00024931,2]
[332198315,1721028643034,-500.0,0.00024931,2]
[332198316,1721028643046,-500.0,0.00024931,2]
[332198317,1721028643055,-500.0,0.00024931,2]
[332198318,1721028643065,-500.0,0.00024931,2]
[332198319,1721028643075,-500.0,0.00024931,2]
[332198320,1721028643086,-1500.0,0.00024931,2]
[332198321,1721028643095,-592.01,0.00024931,2]
[332198323,1721028643105,-500.0,0.00024931,2]
[332198325,1721028643117,-500.0,0.00024931,2]
[332198326,1721028643132,-500.0,0.00024931,2]
[332198327,1721028643141,-500.0,0.00024931,2]
[332198328,1721028643152,-500.0,0.00024931,2]
[332198329,1721028643162,-500.0,0.00024931,2]
[332198330,1721028643174,-632.54,0.00024931,2]
[332198331,1721028643183,-500.0,0.00024931,2]
[332198332,1721028643193,-522.27615834,0.00024931,2]
[332198333,1721028643203,-500.0,0.00024931,2]
[332198334,1721028643212,-302.51602579,0.00024948,2]
[332198335,1721028643222,-190.91920184,0.00025,2]
[332198336,1721028643232,-7645.27879723,0.00025,2]
[332198337,1721028643242,-260.66431118,0.00025127,2]
[332198338,1721028643251,-177.30469269,0.00025154,2]
[332198339,1721028643260,-302.51602579,0.00025197,2]
[332198340,1721028643270,-500.0,0.00025205,2]
[332198341,1721028643280,-500.0,0.00025205,2]
[332198342,1721028643290,-500.0,0.00025205,3]
[332198343,1721028643300,-674.07,0.00025205,2]
[332198344,1721028643311,-194.23235993,0.00025205,2]
[332198345,1721028643322,-500.0,0.00025205,2]
[332198346,1721028643332,-513.21304313,0.00025205,2]
[332198347,1721028643342,-500.0,0.00025205,2]
[332198348,1721028643351,-920.44,0.00025205,2]
[332198350,1721028643361,-514.27719556,0.00025205,2]
[332198351,1721028643371,-500.0,0.00025205,2]
[332198352,1721028643381,-500.0,0.00025205,2]
[332198353,1721028643391,-876.39,0.00025205,2]
[332198354,1721028643401,-500.0,0.00025205,2]
[332198355,1721028643413,-500.0,0.00025205,2]
[332198356,1721028643424,-500.0,0.00025205,2]
[332198357,1721028643434,-500.0,0.00025205,2]
[332198358,1721028643445,-399.99213312,0.00025205,2]
[332198359,1721028643455,-500.0,0.00025205,2]
[332198360,1721028643466,-500.0,0.00025205,2]
[332198361,1721028643476,-220.06344593,0.00025205,2]
[332198362,1721028643485,-500.0,0.00025205,2]
[332198363,1721028643495,-500.0,0.00025205,2]
[332198364,1721028643505,-500.0,0.00025205,2]
[332198365,1721028643516,-555.09805269,0.00025205,2]
[332198366,1721028643526,-500.0,0.00025205,2]
[332198367,1721028643535,-500.0,0.00025205,2]
[332198368,1721028643546,-176.04576437,0.00025205,2]
[332198369,1721028643557,-547.15,0.00025205,2]
[332198370,1721028643566,-667.97,0.00025205,4]
[332198371,1721028643575,-156.29075645,0.00025205,2]
[332198372,1721028643584,-509.45008545,0.00025205,2]
[332198373,1721028643594,-500.0,0.00025205,2]
[332198374,1721028643603,-577.02987716,0.00025205,2]
[332198375,1721028643612,-500.0,0.00025205,2]
[332198376,1721028643621,-500.0,0.00025205,2]
[332198377,1721028643630,-500.0,0.00025205,2]
[332198378,1721028643640,-500.0,0.00025205,2]
[332198379,1721028643649,-280.42,0.00025205,2]
[332198380,1721028643659,-500.0,0.00025205,2]
[332198381,1721028643668,-500.0,0.00025205,2]
[332198382,1721028643677,-500.0,0.00025205,2]
[332198383,1721028643686,-584.57750691,0.00025205,2]
[332198384,1721028643696,-500.0,0.00025205,2]
[332198385,1721028643705,-500.0,0.00025205,2]
[332198386,1721028643714,-500.0,0.00025205,2]
[332198387,1721028643835,-500.0,0.00025205,2]
[332198388,1721028643845,-500.0,0.00025205,2]
[332198389,1721028643854,-500.0,0.00025205,2]
[332198390,1721028643863,-500.0,0.00025205,2]
[332198391,1721028643872,-586.21,0.00025205,2]
[332198392,1721028643881,-500.0,0.00025205,2]
[332198393,1721028643891,-2791.78,0.00025205,2]
[332198394,1721028643900,-500.0,0.00025205,2]
[332198395,1721028643909,-169.96533648,0.00025205,2]
[332198396,1721028643919,-500.0,0.00025205,2]
[332198397,1721028643928,-324.16840616,0.00025205,2]
[332198398,1721028643937,-851.52,0.00025205,2]
[332198399,1721028643946,-500.0,0.00025205,2]
[332198400,1721028643956,-602.65504748,0.00025205,2]
[332198401,1721028643965,-500.0,0.00025205,2]
[332198402,1721028643975,-524.64721976,0.00025205,2]
[332198403,1721028643985,-500.0,0.00025205,2]
[332198404,1721028643995,-500.0,0.00025205,2]
[332198405,1721028644003,-500.0,0.00025205,2]
[332198406,1721028644013,-500.0,0.00025205,2]
[332198407,1721028644022,-500.0,0.00025205,2]
[332198408,1721028644031,-500.0,0.00025205,2]
[332198409,1721028644041,-510.51,0.00025205,2]
[332198410,1721028644051,-651.41,0.00025205,2]
[332198411,1721028644061,-500.0,0.00025205,2]
[332198412,1721028644072,-500.0,0.00025205,2]
[332198413,1721028644082,-500.0,0.00025205,2]
[332198414,1721028644092,-500.0,0.00025205,2]
[332198415,1721028644101,-500.0,0.00025205,2]
[332198416,1721028644110,-500.0,0.00025205,2]
[332198417,1721028644120,-500.0,0.00025205,2]
[332198418,1721028644134,-503.7708613,0.00025205,2]
[332198419,1721028644143,-500.0,0.00025205,2]
[332198420,1721028644153,-789.95,0.00025205,2]
[332198421,1721028644163,-2415.42,0.00025205,2]
[332198422,1721028644173,-500.0,0.00025205,2]
[332198423,1721028644183,-500.0,0.00025205,2]
[332198424,1721028644193,-500.0,0.00025205,2]
[332198425,1721028644205,-1142.33,0.00025205,2]
[332198426,1721028644215,-20287.1,0.00025205,2]
[332198427,1721028644224,-500.0,0.00025205,2]
[332198428,1721028644237,-500.0,0.00025205,2]
[332198429,1721028644246,-500.0,0.00025205,2]
[332198430,1721028644255,-500.0,0.00025205,2]
[332198431,1721028644265,-500.0,0.00025205,2]
[332198432,1721028644275,-1609.22,0.00025205,2]
[332198433,1721028644286,-508.5256993,0.00025205,2]
[332198434,1721028644296,-500.0,0.00025205,2]
[332198435,1721028644307,-3455.44,0.00025205,2]
[332198436,1721028644318,-500.0,0.00025205,2]
[332198437,1721028644327,-500.0,0.00025205,2]
[332198438,1721028644338,-500.0,0.00025205,2]
[332198439,1721028644348,-500.0,0.00025205,2]
[332198440,1721028644357,-500.0,0.00025205,2]
[332198441,1721028644367,-592.01,0.00025205,2]
[332198442,1721028644376,-500.0,0.00025205,2]
[332198443,1721028644386,-500.0,0.00025205,2]
[332198444,1721028644397,-500.0,0.00025205,2]
[332198445,1721028644408,-500.0,0.00025205,2]
[332198446,1721028644419,-500.0,0.00025205,2]
[332198447,1721028644430,-632.54,0.00025205,2]
[332198448,1721028644441,-500.0,0.00025205,2]
[332198449,1721028644452,-500.0,0.00025205,2]
[332198450,1721028644463,-152.157,0.00025249,2]
[332198451,1721028644473,-504.0,0.00025249,2]
[332198452,1721028644482,-1407.0,0.00025249,2]
[332198453,1721028644492,-20855.2723406,0.0002525,2]
[332198454,1721028644654,-264.0,0.00024657,2]
[332198455,1721028644924,-1477.24,0.00024657,2]
[332198456,1721028644934,-500.0,0.00024657,2]
[332198457,1721028644944,-1741.24,0.00024931,2]
[332198458,1721028644953,-1741.24,0.00025205,2]
[332198459,1721028644964,-14336.92158903,0.0002525,2]
[332198460,1721028644973,-27085.7152118,0.0002525,2]
[332198461,1721028644983,-301.461253,0.0002525,7]
[332198462,1721028644993,-189.45900454,0.0002525,2]
[332198463,1721028645003,-301.461253,0.0002525,7]
[332198464,1721028645013,-222.59515947,0.0002525,2]
[332198465,1721028645022,-189.45900454,0.0002525,2]
[332198466,1721028645031,-151.0,0.0002525,7]
[332198467,1721028645040,-288.877805,0.0002525,7]
[332198468,1721028645050,-288.877805,0.0002525,7]
[332198469,1721028645059,-160.0,0.00025255,3]
[332198470,1721028645068,-153.0,0.00025257,2]
[332198471,1721028645078,-153.0,0.00025257,2]
[332198472,1721028645087,-153.0,0.00025257,2]
[332198473,1721028645096,-153.0,0.00025257,2]
[332198474,1721028645105,-153.0,0.00025257,2]
[332198475,1721028645114,-153.0,0.00025257,2]
[332198476,1721028645124,-153.0,0.00025257,2]
[332198477,1721028645135,-153.0,0.00025257,2]
[332198478,1721028645145,-153.0,0.00025257,2]
[332198479,1721028645154,-153.0,0.00025257,2]
[332198480,1721028645164,-153.0,0.00025257,2]
[332198481,1721028645173,-153.0,0.00025257,2]
[332198482,1721028645182,-153.0,0.00025257,2]
[332198483,1721028645191,-153.0,0.00025257,2]
[332198484,1721028645201,-153.0,0.00025276,2]
[332198485,1721028645211,-311.1,0.00025408,2]
[332198486,1721028645220,-155.5,0.00025408,2]
[332198487,1721028645230,-302.51602579,0.00025447,2]
[332198488,1721028645239,-500.0,0.00025479,2]
[332198489,1721028645249,-674.07,0.00025479,2]
[332198490,1721028645258,-500.0,0.00025479,2]
[332198491,1721028645267,-377.69737771,0.00025479,2]
[332198492,1721028645276,-920.44,0.00025479,2]
[332198493,1721028645285,-500.0,0.00025479,2]
[332198494,1721028645296,-500.0,0.00025479,2]
[332198495,1721028645305,-876.39,0.00025479,2]
[332198496,1721028645315,-500.0,0.00025479,2]
[332198497,1721028645324,-500.0,0.00025479,2]
[332198498,1721028645335,-500.0,0.00025479,2]
[332198499,1721028645344,-500.0,0.00025479,2]
[332198500,1721028645354,-500.0,0.00025479,2]
[332198501,1721028645363,-500.0,0.00025479,2]
[332198502,1721028645372,-500.0,0.00025479,2]
[332198503,1721028645381,-500.0,0.00025479,2]
[332198504,1721028645390,-500.0,0.00025479,2]
[332198505,1721028645399,-547.15,0.00025479,2]
[332198506,1721028645409,-667.97,0.00025479,4]
[332198507,1721028645418,-500.0,0.00025479,2]
[332198508,1721028645428,-500.0,0.00025479,2]
[332198509,1721028645437,-500.0,0.00025479,2]
[332198510,1721028645446,-500.0,0.00025479,2]
[332198511,1721028645455,-541.9480609,0.00025479,2]
[332198512,1721028645464,-500.0,0.00025479,2]
[332198513,1721028645474,-483.03,0.00025479,2]
[332198514,1721028645483,-199.68570588,0.00025479,2]
[332198515,1721028645493,-597.13599854,0.00025479,2]
[332198516,1721028645502,-500.0,0.00025479,2]
[332198517,1721028645511,-500.0,0.00025479,2]
[332198518,1721028645522,-616.17,0.00025479,2]
[332198519,1721028645533,-500.0,0.00025479,2]
[332198520,1721028645543,-500.0,0.00025479,2]
[332198521,1721028645553,-500.0,0.00025479,2]
[332198522,1721028645563,-2791.78,0.00025479,2]
[332198523,1721028645572,-500.0,0.00025479,2]
[332198524,1721028645582,-500.0,0.00025479,2]
[332198525,1721028645593,-851.52,0.00025479,2]
[332198526,1721028645604,-500.0,0.00025479,2]
[332198528,1721028645613,-500.0,0.00025479,2]
[332198529,1721028645622,-500.0,0.00025479,2]
[332198531,1721028645632,-367.39471779,0.00025479,2]
[332198532,1721028645642,-500.0,0.00025479,2]
[332198533,1721028645653,-500.0,0.00025479,2]
[332198534,1721028645663,-510.51,0.00025479,2]
[332198535,1721028645672,-651.41,0.00025479,2]
[332198536,1721028645681,-500.0,0.00025479,2]
[332198537,1721028645691,-500.0,0.00025479,2]
[332198538,1721028645702,-500.0,0.00025479,2]
[332198539,1721028645712,-500.0,0.00025479,2]
[332198540,1721028645723,-500.0,0.00025479,2]
[332198541,1721028645732,-500.0,0.00025479,2]
[332198542,1721028645741,-500.0,0.00025479,2]
[332198543,1721028645751,-500.0,0.00025479,2]
[332198544,1721028645760,-789.95,0.00025479,2]
[332198545,1721028645770,-2415.42,0.00025479,2]
[332198546,1721028645779,-500.0,0.00025479,2]
[332198547,1721028645788,-500.0,0.00025479,2]
[332198548,1721028645798,-515.11881733,0.00025479,2]
[332198549,1721028645808,-1142.33,0.00025479,2]
[332198550,1721028645818,-20287.1,0.00025479,2]
[332198551,1721028645827,-500.0,0.00025479,2]
[332198552,1721028645837,-442.57995274,0.00025479,2]
[332198553,1721028645847,-250.96894483,0.00025479,2]
[332198554,1721028645856,-500.0,0.00025479,2]
[332198555,1721028645866,-500.0,0.00025479,2]
[332198556,1721028645876,-1609.22,0.00025479,2]
[332198557,1721028645885,-194.15359992,0.00025479,2]
[332198558,1721028645894,-3455.44,0.00025479,2]
[332198559,1721028645903,-500.0,0.00025479,2]
[332198560,1721028645913,-358.59453989,0.00025479,2]
[332198561,1721028645922,-500.0,0.00025479,2]
[332198562,1721028645931,-592.01,0.00025479,2]
[332198563,1721028645940,-500.0,0.00025479,2]
[332198564,1721028645950,-500.0,0.00025479,2]
[332198565,1721028645959,-500.0,0.00025479,2]
[332198566,1721028645968,-500.0,0.00025479,2]
[332198567,1721028645977,-632.54,0.00025479,2]
[332198568,1721028645986,-500.0,0.00025479,2]
[332198569,1721028645995,-500.0,0.00025479,2]
[332198570,1721028646004,-1741.24,0.00025479,2]
[332198571,1721028646013,-10303.38399592,0.000255,2]
[332198572,1721028646133,-500.0,0.00024931,2]
[332198573,1721028646143,-208.607721,0.0002525,7]
[332198574,1721028646151,-1430.25719752,0.000255,2]
[332198575,1721028646310,-119634.9080217,0.000255,2]
[332198576,1721028646319,-30000.0,0.00025501,2]
[332198577,1721028646328,-151.15609563,0.00025519,2]
[332198578,1721028646337,-301.1886719,0.00025696,2]
[332198579,1721028646347,-400.81524918,0.00025753,2]
[332198580,1721028646650,-500.0,0.00024657,2]
[332198581,1721028646659,-208.607721,0.0002525,7]
[332198582,1721028646668,-99.18475082,0.00025753,2]
[332198583,1721028646678,-674.07,0.00025753,2]
[332198584,1721028646687,-500.0,0.00025753,2]
[332198585,1721028646697,-920.44,0.00025753,2]
[332198586,1721028646706,-163.19785637,0.00025753,2]
[332198587,1721028646716,-153.26200374,0.00025753,2]
[332198588,1721028646724,-876.39,0.00025753,2]
[332198589,1721028646734,-500.0,0.00025753,2]
[332198590,1721028646742,-447.85875212,0.00025753,2]
[332198591,1721028646752,-500.0,0.00025753,2]
[332198592,1721028646761,-500.0,0.00025753,2]
[332198593,1721028646771,-500.0,0.00025753,2]
[332198594,1721028646780,-204.6883836,0.00025753,2]
[332198595,1721028646790,-500.0,0.00025753,2]
[332198596,1721028646801,-426.67635184,0.00025753,2]
[332198598,1721029119917,1113.19354979,0.00015,2]
[332198600,1721029434160,1159.23553938,0.00014999,2]
[332198601,1721029488722,1500.0,0.00014999,2]
[332198603,1721029561374,7359.23741695,0.00014998,2]
[332198604,1721029563709,487.82307911,0.00015,2]
[332198605,1721029608837,3206.26083535,0.00014999,2]
[332198606,1721029692185,9629.18802957,0.00014998,2]
[332198607,1721029770999,240.24248614,0.00014999,2]
[332198654,1721029832339,-507.84,0.00016255,2]
[332198753,1721029839164,-8.98791155,0.00016255,2]
[332198754,1721029839174,-4341.07685549,0.00016255,2]
[332198755,1721029839185,-1287.68811622,0.00016255,2]
[332198756,1721029839195,-1440.71060237,0.00016255,2]
[332198757,1721029839207,-222.59515947,0.0001818,2]
[332198758,1721029839222,-626.59024603,0.000189,2]
[332198759,1721029839235,-200.07730814,0.0002,2]
[332198760,1721029839249,-491.52773917,0.00021095,2]
[332198761,1721029839259,-307.892492,0.00021096,2]
[332198762,1721029839271,-379.92004999,0.00021917,2]
[332198763,1721029839281,-175.399297,0.00021918,2]
[332198764,1721029839293,-1000.0,0.00022,22]
[332198765,1721029839302,-880.08779934,0.0002217,2]
[332198766,1721029839312,-175.399297,0.00022773,2]
[332198767,1721029839322,-1558.7828817,0.000229,2]
[332198768,1721029839331,-352.98086887,0.00022943,2]
[332198769,1721029839341,-24900.0,0.00022995,2]
[332198770,1721029839352,-1000.0,0.00023,23]
[332198771,1721029839363,-175.399297,0.00023627,2]
[332198772,1721029839373,-626.59024603,0.000239,2]
[332198773,1721029839383,-84205.7371392,0.0002399,3]
[332198774,1721029839395,-500.0,0.00023999,2]
[332198775,1721029839403,-500.0,0.00023999,2]
[332198776,1721029839413,-231.73874481,0.00023999,2]
[332198777,1721029839422,-317.42832114,0.00023999,2]
[332198778,1721029839432,-500.0,0.00023999,2]
[332198779,1721029839442,-493.80988577,0.00023999,2]
[332198780,1721029839451,-500.0,0.00023999,2]
[332198781,1721029839460,-26724.00072363,0.00024,2]
[332198782,1721029839472,-74208.66314257,0.00024,2]
[332198783,1721029839481,-1000.0,0.00024,24]
[332198784,1721029839491,-153.0,0.00024,2]
[332198785,1721029839503,-1585.59430475,0.00024,30]
[332198786,1721029839512,-2000.0,0.00024227,2]
[332198787,1721029839522,-168411.474278,0.00024337,3]
[332198788,1721029839531,-17079.5931875,0.00024347,3]
[332198796,1721029840484,-2135.60833403,0.00016255,2]
[332198797,1721029840493,-1021.4432238,0.00016255,2]
[332198798,1721029840506,-34147.49985852,0.00024347,3]
[332198799,1721029840516,-278.7,0.00024398,2]
[332198800,1721029840525,-150.112233,0.000244,3]
[332198801,1721029840535,-153.0,0.00024467,2]
[332198802,1721029840545,-153.0,0.00024467,2]
[332198803,1721029840554,-153.0,0.00024467,2]
[332198804,1721029840564,-153.0,0.00024467,2]
[332198805,1721029840573,-153.0,0.00024467,2]
[332198806,1721029840583,-153.0,0.00024467,2]
[332198807,1721029840592,-153.0,0.00024467,2]
[332198808,1721029840601,-153.0,0.00024467,2]
[332198809,1721029840611,-153.0,0.00024467,2]
[332198810,1721029840620,-153.0,0.00024467,2]
[332198811,1721029840629,-153.0,0.00024467,2]
[332198812,1721029840638,-153.0,0.00024467,2]
[332198813,1721029840647,-153.0,0.00024467,2]
[332198814,1721029840656,-153.0,0.00024467,2]
[332198815,1721029840665,-153.0,0.00024467,2]
[332198816,1721029840674,-153.0,0.00024467,2]
[332198817,1721029840685,-153.0,0.00024467,2]
[332198818,1721029840696,-153.0,0.00024467,2]
[332198819,1721029840705,-153.0,0.00024467,2]
[332198820,1721029840715,-153.0,0.00024467,2]
[332198821,1721029840727,-1361.74587991,0.00024476,2]
[332198822,1721029840736,-158.29964009,0.00024481,2]
[332198823,1721029840745,-175.399297,0.00024482,2]
[332198824,1721029840755,-150.112233,0.000245,5]
[332198825,1721029840765,-150.112233,0.000246,2]
[332198826,1721029840774,-1558.7828817,0.00024614,2]
[332198827,1721029840783,-1216.82132394,0.00024647,5]
[332198828,1721029840793,-86902.13868463,0.00024647,3]
[332198829,1721029840804,-2009.41297249,0.00024647,3]
[332198830,1721029840815,-36227.05632069,0.00024647,3]
[332198861,1721029843696,-4341.07685549,0.00016255,2]
[332198862,1721029843706,-43272.86630019,0.00024647,3]
[332198863,1721029843715,-509.36186168,0.00024657,2]
[332198864,1721029843725,-500.0,0.00024657,2]
[332198865,1721029843734,-500.0,0.00024657,2]
[332198866,1721029843744,-501.89930522,0.00024657,2]
[332198867,1721029843754,-500.0,0.00024657,2]
[332198868,1721029843763,-500.0,0.00024657,2]
[332198869,1721029843773,-500.0,0.00024657,2]
[332198870,1721029843783,-500.0,0.00024657,2]
[332198871,1721029843792,-500.0,0.00024657,2]
[332198872,1721029843801,-500.0,0.00024657,2]
[332198873,1721029843811,-500.0,0.00024657,2]
[332198874,1721029843820,-500.0,0.00024657,2]
[332198875,1721029843830,-573.04,0.00024657,2]
[332198876,1721029843841,-503.10143707,0.00024657,2]
[332198877,1721029843852,-500.0,0.00024657,2]
[332198878,1721029843862,-304.97028361,0.00024657,2]
[332198879,1721029843871,-500.0,0.00024657,2]
[332198880,1721029843881,-500.0,0.00024657,2]
[332198881,1721029843890,-500.0,0.00024657,2]
[332198882,1721029843899,-502.49059916,0.00024657,2]
[332198883,1721029843909,-505.29809646,0.00024657,2]
[332198884,1721029843918,-506.00373082,0.00024657,2]
[332198885,1721029843927,-500.0,0.00024657,2]
[332198886,1721029843937,-500.0,0.00024657,2]
[332198887,1721029843947,-505.71368057,0.00024657,2]
[332198888,1721029843956,-506.07253695,0.00024657,2]
[332198889,1721029843966,-503.14297446,0.00024657,2]
[332198890,1721029843976,-500.0,0.00024657,2]
[332198891,1721029843985,-356.01105877,0.00024657,2]
[332198892,1721029843994,-640.14,0.00024657,4]
[332198893,1721029844003,-500.0,0.00024657,2]
[332198894,1721029844013,-500.0,0.00024657,2]
[332198895,1721029844022,-500.0,0.00024657,2]
[332198896,1721029844031,-500.0,0.00024657,2]
[332198897,1721029844040,-502.99870871,0.00024657,2]
[332198898,1721029844050,-507.17226905,0.00024657,2]
[332198899,1721029844059,-500.0,0.00024657,2]
[332198900,1721029844068,-500.0,0.00024657,2]
[332198901,1721029844078,-551.71117352,0.00024657,2]
[332198902,1721029844087,-199.68570588,0.00024657,2]
[332198903,1721029844096,-500.0,0.00024657,2]
[332198904,1721029844105,-500.0,0.00024657,2]
[332198905,1721029844114,-500.0,0.00024657,2]
[332198906,1721029844124,-529.37409628,0.00024657,2]
[332198907,1721029844133,-500.0,0.00024657,2]
[332198908,1721029844142,-500.0,0.00024657,2]
[332198909,1721029844152,-500.0,0.00024657,2]
[332198910,1721029844161,-500.0,0.00024657,2]
[332198911,1721029844170,-504.61196702,0.00024657,2]
[332198912,1721029844179,-500.0,0.00024657,2]
[332198913,1721029844192,-500.0,0.00024657,2]
[332198914,1721029844201,-500.0,0.00024657,2]
[332198915,1721029844210,-545.03,0.00024657,2]
[332198916,1721029844222,-488.58034579,0.00024657,2]
[332198917,1721029844231,-507.93,0.00024657,2]
[332198918,1721029844240,-500.0,0.00024657,2]
[332198919,1721029844249,-500.0,0.00024657,2]
[332198920,1721029844258,-500.0,0.00024657,2]
[332198921,1721029844267,-500.0,0.00024657,2]
[332198922,1721029844276,-500.0,0.00024657,2]
[332198923,1721029844285,-503.48140678,0.00024657,2]
[332198924,1721029844294,-500.0,0.00024657,2]
[332198925,1721029844303,-168.3383261,0.00024657,2]
[332198926,1721029844312,-303.2196073,0.00024657,2]
[332198927,1721029844321,-500.0,0.00024657,2]
[332198928,1721029844330,-504.31130692,0.00024657,2]
[332198929,1721029844339,-500.0,0.00024657,2]
[332198930,1721029844348,-500.0,0.00024657,2]
[332198931,1721029844357,-510.19384143,0.00024657,2]
[332198932,1721029844366,-500.0,0.00024657,2]
[332198933,1721029844375,-500.0,0.00024657,2]
[332198934,1721029844384,-500.0,0.00024657,2]
[332198935,1721029844393,-500.0,0.00024657,2]
[332198936,1721029844402,-500.0,0.00024657,2]
[332198937,1721029844411,-500.0,0.00024657,2]
[332198938,1721029844420,-500.0,0.00024657,2]
[332198939,1721029844430,-199.21476627,0.00024657,2]
[332198940,1721029844441,-500.0,0.00024657,2]
[332198941,1721029844450,-160.56860065,0.00024657,2]
[332198942,1721029844459,-500.0,0.00024657,2]
[332198943,1721029844468,-500.0,0.00024657,2]
[332198944,1721029844478,-504.92355843,0.00024657,2]
[332198945,1721029844487,-500.0,0.00024657,2]
[332198946,1721029844497,-500.0,0.00024657,2]
[332198947,1721029844508,-500.0,0.00024657,2]
[332198948,1721029844517,-500.0,0.00024657,2]
[332198949,1721029844527,-500.0,0.00024657,2]
[332198950,1721029844536,-749.59,0.00024657,2]
[332198951,1721029844546,-219.95395039,0.00024657,2]
[332198952,1721029844556,-500.0,0.00024657,2]
[332198953,1721029844565,-799.51,0.00024657,2]
[332198954,1721029844575,-504.77553109,0.00024657,2]
[332198955,1721029844584,-500.0,0.00024657,2]
[332198956,1721029844594,-520.32579816,0.00024657,2]
[332198957,1721029844603,-549.21095173,0.00024657,2]
[332198958,1721029844613,-500.0,0.00024657,2]
[332198959,1721029844622,-500.0,0.00024657,2]
[332198960,1721029844631,-1500.0,0.00024657,2]
[332198961,1721029844640,-549.63,0.00024657,2]
[332198962,1721029844649,-500.0,0.00024657,2]
[332198963,1721029844659,-433.89945512,0.00024657,2]